bitfinex-derivatives/quotes_ETHF0:USTF0_20250824
["timestamp","ask_amount","ask_price","bid_price","bid_amount"]
[1756056108306,0.41154,4861.0,4860.9,1.1721]
[1756056108607,21.91254,4861.0,4860.9,1.1721]
[1756056108804,0.41155,4860.8,4860.7,1.09018499]
[1756056108999,21.91253,4861.0,4860.7,0.8333]
[1756056109198,21.91253,4861.0,4860.8,0.4111]
[1756056109402,0.41155,4860.8,4860.7,0.4222]
[1756056110103,0.41155,4860.8,4860.7,0.8333]
[1756056110499,21.91254,4861.0,4860.8,0.4222]
[1756056110703,21.91254,4861.0,4860.9,1.9598]
[1756056111810,0.41152,4861.2,4860.9,1.9598]
[1756056112009,0.41153,4861.0,4860.9,1.9598]
[1756056112208,21.88753,4861.0,4860.9,1.9598]
[1756056112610,21.476,4861.0,4860.9,1.9598]
[1756056113407,21.476,4861.0,4860.8,1.09018499]
[1756056113408,0.41154,4860.9,4860.8,1.09018499]
[1756056113603,21.476,4861.0,4860.6,1.09018499]
[1756056113804,0.41157,4860.6,4860.3,1.1721]
[1756056114005,0.41157,4860.6,4860.5,0.7877]
[1756056114206,21.87657,4860.6,4860.5,1.621]
[1756056114407,21.87657,4860.6,4860.5,1.9598]
[1756056115107,21.463,4860.6,4860.5,1.9598]
[1756056115508,21.455,4860.6,4860.5,0.7877]
[1756056116208,21.455,4860.6,4860.5,1.9598]
[1756056116408,0.41156,4860.7,4860.6,1.6819]
[1756056116608,21.86356,4860.7,4860.6,1.9598]
[1756056117512,0.41154,4860.9,4860.6,1.9598]
[1756056117702,0.41154,4860.9,4860.8,1.1265]
[1756056117908,21.85354,4860.9,4860.8,1.9598]
[1756056118314,21.442,4860.9,4860.8,1.9598]
[1756056119712,0.41154,4861.0,4860.9,1.9598]
[1756056119912,21.84254,4861.0,4860.9,1.9598]
[1756056120407,0.41154,4861.0,4860.9,1.9598]
[1756056120608,29.645,4861.7,4861.6,1.5376]
[1756056120814,51.071,4861.7,4861.6,1.9598]
[1756056121002,29.645,4861.7,4861.6,1.9598]
[1756056121206,51.068,4861.7,4861.6,1.9598]
[1756056122008,1.02839,4863.2,4862.0,0.41144]
[1756056122009,0.4114,4862.6,4862.0,0.41144]
[1756056122217,29.639,4863.2,4862.7,0.8333]
[1756056122218,0.41137,4862.9,4862.7,0.8333]
[1756056122409,0.41135,4863.1,4862.8,0.8333]
[1756056122717,21.82537,4863.0,4862.9,0.4222]
[1756056122911,21.82537,4863.0,4862.0,1.09018499]
[1756056122912,1.02845,4862.9,4861.8,1.09018499]
[1756056123110,0.41147,4861.7,4861.5,0.8333]
[1756056123303,21.411,4861.6,4861.0,0.4222]
[1756056123507,1.02856,4862.3,4860.9,0.4111]
[1756056123815,1.59313788,4864.7,4861.4,0.41149]
[1756056123816,0.41145,4862.0,4861.4,0.41149]
[1756056124018,0.41145,4862.0,4861.9,0.8333]
[1756056124317,21.81645,4862.0,4861.9,1.9598]
[1756056124508,21.81645,4862.0,4861.9,1.621]
[1756056125310,0.41145,4862.0,4861.9,1.9598]
[1756056125515,21.80945,4862.0,4861.9,1.621]
[1756056125711,0.41148,4861.7,4861.4,0.3388]
[1756056125921,0.41148,4861.7,4861.3,1.111]
[1756056126214,21.398,4862.0,4861.8,0.4222]
[1756056126215,21.80945,4862.0,4861.8,0.4222]
[1756056126415,0.41145,4862.0,4861.9,1.621]
[1756056126618,21.80445,4862.0,4861.9,1.621]
[1756056126816,0.41145,4862.0,4861.9,1.621]
[1756056127010,0.41145,4862.0,4861.9,1.3889]
[1756056127213,21.79745,4862.0,4861.9,1.3889]
[1756056127515,0.41148,4861.7,4861.5,1.09018499]
[1756056127717,0.41146,4861.9,4861.6,0.4968]
[1756056127907,0.41146,4861.9,4861.8,0.398]
[1756056128418,0.41148,4861.6,4861.4,1.09018499]
[1756056129013,0.41152,4861.1,4861.0,1.09018499]
[1756056129213,0.41155,4860.8,4860.7,0.398]
[1756056129414,0.41153,4861.0,4860.6,0.90836]
[1756056129608,0.41153,4861.0,4860.7,0.7901]
[1756056129810,0.41153,4861.0,4860.5,1.45066086]
[1756056129811,0.41152,4861.2,4860.9,0.2309]
[1756056130010,1.02844,4862.9,4861.8,0.3261]
[1756056130218,0.41139,4862.7,4861.9,1.50320022]
[1756056130421,0.41141,4862.4,4862.3,0.7598]
[1756056130615,0.41141,4862.4,4862.3,1.876]
[1756056130812,21.77641,4862.4,4862.3,1.876]
[1756056131216,21.77441,4862.4,4862.3,1.876]
[1756056131712,29.639,4863.2,4862.3,1.876]
[1756056131909,29.639,4863.2,4862.5,0.7598]
[1756056132113,0.41138,4862.8,4862.7,1.319]
[1756056132810,0.41138,4862.8,4862.7,1.876]
[1756056133011,29.639,4863.2,4863.1,0.263]
[1756056133212,29.639,4863.2,4863.1,1.876]
[1756056133609,50.987,4863.2,4863.1,1.876]
[1756056134015,29.635,4865.0,4863.6,0.3261]
[1756056134215,0.41126,4864.2,4864.1,0.7598]
[1756056134411,21.344,4864.2,4864.1,1.876]
[1756056134616,29.635,4865.0,4864.1,1.876]
[1756056134816,21.34,4864.9,4864.6,0.7901]
[1756056135025,21.34,4864.9,4864.7,0.3921]
[1756056135219,21.34,4864.9,4864.8,0.398]
[1756056136025,21.34,4864.9,4864.8,0.7901]
[1756056136221,29.634,4866.5,4865.0,0.41119]
[1756056136426,0.41107,4866.6,4865.5,0.3261]
[1756056136627,0.41106,4866.6,4865.9,0.7901]
[1756056136824,21.329,4866.5,4866.1,0.7182]
[1756056137024,0.0205,4866.4,4865.4,1.09174022]
[1756056137228,1.02782,4865.8,4864.4,0.398]
[1756056137422,0.41119,4865.1,4864.5,0.7901]
[1756056137624,0.4112,4864.9,4864.4,0.41124]
[1756056137927,21.325,4865.0,4863.9,0.0205]
[1756056137928,0.41125,4864.4,4864.3,0.398]
[1756056138227,21.73325,4864.4,4864.3,0.398]
[1756056138425,0.41129,4863.8,4863.5,0.398]
[1756056138621,21.32,4863.7,4863.4,0.3261]
[1756056138819,21.73131,4863.7,4863.5,0.398]
[1756056139024,0.41132,4863.5,4863.0,0.3921]
[1756056139332,0.41132,4863.5,4862.9,0.41137]
[1756056139519,0.41132,4863.5,4863.4,1.1162]
[1756056139722,0.41132,4863.5,4863.4,0.7901]
[1756056139931,0.41135,4863.1,4862.9,0.3921]
[1756056140127,0.41135,4863.1,4863.0,0.398]
[1756056140435,21.71735,4863.1,4863.0,0.398]
[1756056140623,29.629,4863.6,4863.2,0.7901]
[1756056140826,21.302,4863.5,4862.6,0.41139]
[1756056141026,29.629,4863.6,4863.1,1.1162]
[1756056141220,21.301,4863.5,4863.3,0.7901]
[1756056141427,21.301,4863.5,4863.4,0.3261]
[1756056141627,21.301,4863.5,4863.4,0.7901]
[1756056141933,21.71232,4863.5,4863.4,1.1162]
[1756056142332,21.71232,4863.5,4863.4,0.7901]
[1756056142827,21.71232,4863.5,4863.4,0.398]
[1756056143028,21.71232,4863.5,4862.9,0.398]
[1756056143029,0.41136,4863.0,4862.9,0.398]
[1756056143228,29.629,4863.6,4863.1,0.398]
[1756056143428,0.41133,4863.4,4862.3,1.09174022]
[1756056143634,0.41133,4863.4,4863.3,1.1162]
[1756056144030,21.287,4863.5,4863.3,1.1162]
[1756056144031,21.287,4863.5,4863.3,0.3261]
[1756056144229,21.287,4863.5,4863.4,1.1162]
[1756056144433,30.04031,4863.6,4863.4,1.1162]
[1756056144634,21.279,4863.5,4863.4,0.41132]
[1756056144936,21.279,4863.9,4863.8,1.1162]
[1756056145138,0.41124,4864.5,4862.9,1.04892]
[1756056145139,0.41124,4864.5,4864.0,0.7901]
[1756056145339,29.625,4865.2,4864.2,0.3261]
[1756056145531,21.274,4865.1,4864.4,1.1162]
[1756056145736,21.274,4865.1,4864.5,0.7901]
[1756056145934,21.274,4865.1,4864.5,0.3921]
[1756056146134,0.41121,4864.9,4864.7,0.3921]
[1756056146339,0.41121,4864.9,4864.8,0.7901]
[1756056147337,0.41121,4864.9,4864.8,0.398]
[1756056147538,0.41123,4864.6,4863.6,1.09174022]
[1756056147839,21.27,4864.5,4863.6,1.09174022]
[1756056148040,21.27,4864.5,4864.2,0.41125]
[1756056148232,21.26,4864.6,4864.4,0.7901]
[1756056148432,21.259,4864.7,4864.6,0.7901]
[1756056148638,21.259,4864.7,4864.6,1.52743]
[1756056149140,29.625,4865.2,4864.8,1.1353]
[1756056149339,21.258,4865.1,4865.0,0.7182]
[1756056149537,29.625,4865.2,4865.1,0.41118]
[1756056149832,29.6455,4866.7,4865.6,0.7901]
[1756056150035,22.27767,4866.6,4865.7,0.398]
[1756056150235,0.41111,4866.0,4865.8,0.7901]
[1756056150442,21.25,4865.9,4865.5,0.73725]
[1756056150633,21.25,4865.9,4865.6,0.41113]
[1756056150830,21.246,4865.8,4865.7,0.3261]
[1756056151437,21.241,4866.2,4866.1,0.4111]
[1756056152037,29.622,4868.2,4867.0,0.3261]
[1756056152240,21.238,4868.1,4867.1,0.7901]
[1756056152442,21.238,4868.1,4867.2,0.398]
[1756056152743,0.411,4867.3,4867.2,0.398]
[1756056152942,21.233,4867.3,4867.2,0.7901]
[1756056153143,21.233,4867.3,4867.2,0.398]
[1756056153537,0.41102,4867.1,4866.9,0.398]
[1756056153845,1.02738,4867.9,4866.2,0.398]
[1756056153846,21.229,4867.0,4866.2,0.398]
[1756056154044,1.02748,4867.5,4865.9,0.3261]
[1756056154045,0.41106,4866.6,4866.0,0.3921]
[1756056154241,21.224,4866.5,4866.1,0.80909]
[1756056154446,21.224,4866.5,4866.3,0.7901]
[1756056154641,0.41106,4866.6,4866.4,0.398]
[1756056154846,0.41106,4866.6,4866.5,0.7901]
[1756056155048,21.63106,4866.6,4866.5,0.7901]
[1756056155843,0.41108,4866.4,4866.1,0.3921]
[1756056156048,21.22,4866.6,4866.2,0.398]
[1756056156345,0.41111,4866.0,4865.9,0.398]
[1756056156649,21.62411,4866.0,4865.9,0.7901]
[1756056157738,21.62411,4866.0,4865.9,0.398]
[1756056157947,0.41114,4865.6,4865.5,0.7954]
[1756056158149,0.41114,4865.6,4865.5,0.3764]
[1756056160541,0.41112,4865.9,4865.4,0.3764]
[1756056160747,21.183,4865.8,4865.6,1.1432]
[1756056160947,21.182,4866.3,4866.2,1.1432]
[1756056161848,29.61,4866.4,4866.1,0.7954]
[1756056162155,29.61,4866.4,4866.3,1.1432]
[1756056162350,50.786,4866.4,4866.3,1.1432]
[1756056163047,29.61,4866.4,4866.3,1.1432]
[1756056163448,50.78,4866.4,4866.3,1.1432]
[1756056164048,29.61,4866.4,4866.3,1.1432]
[1756056164248,50.774,4866.4,4866.3,0.7954]
[1756056165050,21.164,4866.4,4866.3,1.1432]
[1756056166646,21.158,4866.5,4866.2,0.41109]
[1756056166849,21.158,4866.5,4866.4,0.7668]
[1756056167050,21.158,4866.5,4866.4,1.1432]
[1756056168156,21.141,4867.1,4866.9,1.55423]
[1756056168353,29.61,4867.8,4867.1,1.1432]
[1756056168354,0.41097,4867.6,4867.1,1.1432]
[1756056168549,21.55099,4867.5,4867.2,1.1432]
[1756056168750,0.41099,4867.5,4867.4,1.1432]
[1756056168950,21.137,4867.5,4866.6,0.0205]
[1756056169154,21.137,4867.5,4867.3,0.41099]
[1756056169657,21.137,4867.5,4867.4,1.1432]
[1756056169957,21.134,4867.6,4867.5,1.1432]
[1756056170346,21.134,4867.6,4867.5,0.7954]
[1756056170546,21.134,4867.6,4867.2,0.3764]
[1756056170752,21.134,4867.6,4867.1,0.3764]
[1756056171057,21.134,4867.6,4867.3,0.7954]
[1756056171258,21.134,4867.6,4867.5,0.7954]
[1756056171652,21.54497,4867.6,4867.5,1.1432]
[1756056172059,21.54497,4867.6,4867.5,0.7954]
[1756056172458,21.134,4867.6,4867.5,0.7954]
[1756056172851,21.134,4867.6,4867.5,0.3764]
[1756056173051,21.134,4867.6,4867.5,1.1432]
[1756056173353,21.115,4867.6,4867.4,0.41099]
[1756056173554,21.115,4867.6,4867.5,1.1432]
[1756056173750,21.52597,4867.6,4867.5,0.3764]
[1756056175055,21.115,4867.6,4867.5,1.333]
[1756056175252,21.115,4867.6,4867.5,0.3764]
[1756056175553,21.11948446,4867.6,4867.5,0.3764]
[1756056176859,25.13998446,4867.6,4866.9,1.09174022]
[1756056177055,21.13998446,4867.6,4866.1,0.7954]
[1756056177254,1.02751,4867.3,4866.1,1.293]
[1756056177457,21.09,4867.2,4866.1,1.293]
[1756056177655,0.0205,4867.5,4866.5,0.6485]
[1756056177961,0.41104,4866.8,4866.7,0.7954]
[1756056178154,0.41106,4866.6,4866.2,2.04834022]
[1756056178352,0.41106,4866.6,4866.4,0.7954]
[1756056178552,0.41106,4866.6,4866.5,0.3764]
[1756056179955,30.63742,4867.8,4866.5,1.9063]
[1756056180259,0.41103,4867.0,4866.6,0.2721]
[1756056180457,0.41107,4866.5,4866.4,0.3764]
[1756056180660,0.41105,4866.7,4866.4,0.3764]
[1756056180855,0.41105,4866.7,4866.3,0.3764]
[1756056181060,0.41105,4866.7,4866.4,0.7631]
[1756056181258,0.41105,4866.7,4866.6,0.3764]
[1756056181458,0.41105,4866.7,4866.6,0.7954]
[1756056181955,0.41105,4866.7,4866.6,1.0675]
[1756056182160,21.071,4866.9,4866.8,1.9063]
[1756056182356,21.071,4866.9,4866.8,2.99371318]
[1756056182555,21.071,4866.9,4866.8,1.5585]
[1756056182860,21.071,4866.9,4866.5,0.7954]
[1756056183157,21.48203,4866.9,4866.5,0.419]
[1756056183463,21.071,4866.9,4866.8,0.3764]
[1756056183964,21.071,4866.9,4866.8,0.7954]
[1756056184158,0.41546446,4867.6,4867.1,0.419]
[1756056184361,21.46099,4867.5,4867.3,0.3764]
[1756056184757,21.46099,4867.5,4867.4,0.3764]
[1756056184957,21.05,4867.5,4867.4,0.3764]
[1756056185660,21.05,4867.5,4867.4,2.99371318]
[1756056185861,21.05,4867.5,4867.4,1.9063]
[1756056186265,0.00448446,4867.6,4867.5,2.31728]
[1756056186858,29.601,4869.2,4868.8,0.41087]
[1756056187054,29.601,4869.2,4869.1,1.5231]
[1756056187259,50.635,4869.2,4869.1,1.5231]
[1756056187460,50.635,4869.2,4868.6,1.0857115]
[1756056187664,50.635,4869.2,4868.5,0.4109]
[1756056187857,50.635,4869.2,4868.9,0.4064]
[1756056188159,50.635,4869.2,4869.0,0.2462]
[1756056188357,50.635,4869.2,4869.1,0.7963]
[1756056188557,29.601,4869.2,4869.1,0.7963]
[1756056188865,50.627,4869.2,4869.1,0.7963]
[1756056189060,50.627,4869.2,4869.1,0.3899]
[1756056189256,50.627,4869.2,4868.7,1.4756115]
[1756056189464,50.627,4869.2,4868.8,0.3899]
[1756056189665,0.41087,4868.8,4868.6,1.0857115]
[1756056189867,0.41093,4868.1,4867.7,0.3899]
[1756056190165,21.021,4868.0,4867.9,0.7963]
[1756056190964,0.41094,4868.1,4867.9,0.7963]
[1756056191268,21.013,4868.0,4867.9,0.7963]
[1756056191466,21.013,4868.0,4867.9,1.1184]
[1756056191768,21.01,4868.0,4867.9,0.7963]
[1756056193161,21.0305,4868.0,4867.6,1.0857115]
[1756056193363,0.41098,4867.5,4867.4,1.0857115]
[1756056193559,0.41102,4867.1,4866.8,1.0857115]
[1756056193764,21.40803,4867.0,4866.8,1.4756115]
[1756056193964,21.40803,4867.0,4866.8,1.0857115]
[1756056194160,20.997,4867.0,4866.9,0.3899]
[1756056194562,21.40802,4867.0,4866.9,0.3899]
[1756056194968,0.41104,4866.9,4866.7,0.3899]
[1756056195164,0.41104,4866.9,4866.8,0.3899]
[1756056198374,0.41106,4866.6,4866.4,1.0857115]
[1756056198561,0.41107,4866.5,4866.3,0.3899]
[1756056198766,0.41107,4866.5,4866.1,0.3899]
[1756056198966,0.41107,4866.5,4866.0,0.4111]
[1756056199274,20.968,4866.4,4866.2,0.4644]
[1756056199467,20.968,4866.4,4866.3,0.7963]
[1756056201969,20.968,4866.4,4866.3,0.3899]
[1756056202974,20.968,4866.4,4866.3,0.7963]
[1756056206778,20.968,4866.4,4866.3,0.3899]
[1756056206977,1.02776,4866.1,4865.2,0.3221]
[1756056207281,0.41115,4865.6,4865.4,0.4064]
[1756056207483,20.929,4865.5,4865.4,0.7963]
[1756056208072,20.929,4865.5,4865.4,0.3899]
[1756056208269,20.929,4865.5,4864.7,0.3899]
[1756056208270,0.41121,4864.8,4864.7,0.3899]
[1756056209078,20.929,4865.5,4865.4,0.2624]
[1756056209273,20.921,4866.4,4866.1,0.7268]
[1756056209477,0.4111,4866.1,4866.0,0.3899]
[1756056209674,0.41115,4865.6,4865.5,0.3899]
[1756056209984,20.916,4866.0,4865.9,1.54431]
[1756056210477,20.916,4866.0,4865.9,2.25631]
[1756056210777,0.41103,4867.0,4866.7,0.6526]
[1756056210983,29.602,4867.5,4866.4,1.1184]
[1756056211176,20.911,4867.4,4866.6,0.7963]
[1756056211378,20.911,4867.4,4866.7,0.3899]
[1756056211572,0.411,4867.3,4866.8,0.7285]
[1756056211882,20.911,4867.4,4867.1,1.1184]
[1756056212077,29.602,4867.5,4867.3,0.4064]
[1756056212276,50.507,4867.5,4867.4,1.1184]
[1756056212679,50.507,4867.5,4866.9,0.4064]
[1756056212680,0.41101,4867.2,4866.9,0.4064]
[1756056212879,0.41103,4867.0,4866.5,0.3899]
[1756056213079,0.41103,4867.0,4866.3,0.41108]
[1756056213284,0.41104,4866.9,4866.3,0.41108]
[1756056213476,20.899,4866.8,4866.7,0.3899]
[1756056214585,20.899,4866.8,4866.2,0.4064]
[1756056214883,0.41107,4866.6,4866.4,0.3899]
[1756056215880,0.41112,4865.9,4865.8,0.3899]
[1756056216182,0.41114,4865.7,4865.4,0.3899]
[1756056216379,0.0205,4867.0,4865.7,0.3899]
[1756056216577,0.41107,4866.5,4865.9,0.41112]
[1756056216773,20.884,4866.4,4865.7,0.3221]
[1756056216974,0.0205,4867.0,4865.1,1.44761534]
[1756056216975,0.41103,4867.0,4866.2,0.41109]
[1756056217179,0.41109,4866.2,4865.5,0.7766]
[1756056217380,20.88,4866.1,4865.6,0.79724]
[1756056217577,0.41111,4866.0,4865.8,0.3861]
[1756056217777,0.41111,4866.0,4865.9,0.3861]
[1756056218079,20.88,4866.1,4866.0,0.7766]
[1756056219178,0.41106,4866.6,4865.6,0.7189]
[1756056219384,20.875,4866.5,4865.5,1.44761534]
[1756056219582,20.875,4866.5,4865.8,0.3284]
[1756056219781,20.875,4866.5,4865.9,0.7766]
[1756056219987,0.41108,4866.4,4866.1,1.105]
[1756056220282,0.41108,4866.4,4866.2,0.3861]
[1756056220485,0.41106,4866.6,4866.3,0.7766]
[1756056220685,20.865,4866.5,4865.9,0.7766]
[1756056220886,0.41109,4866.3,4866.0,0.3861]
[1756056221086,0.41109,4866.3,4866.1,0.3861]
[1756056221289,0.41109,4866.3,4865.9,0.3905]
[1756056221486,0.41109,4866.3,4866.1,0.3861]
[1756056221885,20.865,4866.5,4865.6,0.3905]
[1756056222085,20.865,4866.5,4865.6,0.3861]
[1756056222086,0.41113,4865.8,4865.6,0.3861]
[1756056222287,20.858,4865.7,4865.6,0.3861]
[1756056222692,0.41114,4865.6,4865.3,0.3905]
[1756056222894,0.41114,4865.6,4865.5,0.3861]
[1756056223098,29.605,4865.6,4865.0,0.3861]
[1756056223388,20.851,4865.5,4865.0,0.41119]
[1756056223592,20.851,4865.5,4865.3,0.3284]
[1756056223893,20.851,4865.5,4865.4,0.7766]
[1756056224294,21.26216,4865.5,4865.4,0.3861]
[1756056225492,0.41118,4865.2,4865.0,0.3861]
[1756056227196,1.02791,4865.4,4864.6,0.3861]
[1756056227397,1.02791,4865.4,4864.6,0.79732]
[1756056227585,0.41122,4864.8,4864.7,0.7766]
[1756056227897,21.24322,4864.8,4864.7,0.7766]
[1756056228291,21.24322,4864.8,4864.7,0.3861]
[1756056228991,20.832,4864.8,4864.7,0.3861]
[1756056229493,20.832,4864.8,4864.7,0.7766]
[1756056229692,29.605,4865.6,4864.8,0.3284]
[1756056229891,20.821,4865.5,4865.4,1.105]
[1756056230505,0.41119,4865.1,4864.9,0.3861]
[1756056230697,0.41119,4865.1,4864.8,0.3905]
[1756056230897,0.41119,4865.1,4865.0,0.3861]
[1756056231098,20.821,4865.5,4864.5,1.44761534]
[1756056231099,0.41115,4865.5,4864.5,1.44761534]
[1756056231404,29.605,4865.6,4864.7,0.0205]
[1756056231605,29.605,4865.6,4865.4,0.41115]
[1756056231805,20.813,4865.5,4865.4,0.41115]
[1756056232004,14.085,4869.7,4865.4,4.0]
[1756056232206,29.61,4868.5,4867.3,0.411]
[1756056232401,0.41096,4867.8,4867.2,0.7394]
[1756056232602,0.41096,4867.8,4866.4,1.04819]
[1756056232603,20.811,4867.7,4867.4,1.105]
[1756056232815,20.811,4867.7,4867.5,0.3284]
[1756056233110,0.41093,4868.2,4867.7,0.41096]
[1756056233298,20.807,4868.1,4867.9,0.7766]
[1756056233499,20.807,4868.1,4868.0,0.7766]
[1756056234209,29.61,4868.5,4868.1,0.3905]
[1756056234402,29.61,4868.5,4868.4,0.7766]
[1756056234604,29.61,4868.5,4868.4,1.105]
[1756056234807,50.412,4868.5,4868.4,1.105]
[1756056235004,50.412,4868.5,4868.4,0.7766]
[1756056235506,50.412,4868.5,4868.4,1.105]
[1756056237209,50.412,4868.5,4868.4,0.7766]
[1756056237411,50.412,4868.5,4868.4,0.3861]
[1756056237611,50.412,4868.5,4868.2,0.3861]
[1756056237800,50.412,4868.5,4867.8,0.3284]
[1756056237801,50.412,4868.5,4868.1,0.41092]
[1756056238004,50.412,4868.5,4868.2,0.7766]
[1756056238205,50.412,4868.5,4868.3,0.3861]
[1756056238408,29.61,4868.5,4868.4,0.3861]
[1756056238604,50.395,4868.5,4867.9,0.3861]
[1756056238912,0.41092,4868.3,4867.9,0.3861]
[1756056239204,0.41092,4868.3,4868.2,0.3861]
[1756056239401,20.779,4868.3,4868.2,0.3905]
[1756056239602,20.779,4868.3,4867.6,0.3284]
[1756056239912,21.18992,4868.3,4867.6,0.3284]
[1756056240104,20.776,4868.2,4867.8,0.3905]
[1756056240300,20.776,4868.1,4867.9,1.105]
[1756056240610,20.776,4868.1,4868.0,1.105]
[1756056240813,30.0209,4868.5,4868.0,1.105]
[1756056241011,20.775,4868.4,4868.1,0.3861]
[1756056241200,20.775,4868.4,4868.3,0.3861]
[1756056242210,20.775,4868.4,4867.7,0.41096]
[1756056242417,20.775,4868.4,4867.9,0.7766]
[1756056242608,0.41094,4868.1,4868.0,0.7766]
[1756056242807,29.61,4868.5,4868.1,0.3861]
[1756056242808,0.41092,4868.2,4868.1,0.3861]
[1756056243004,0.41093,4868.2,4866.9,0.7766]
[1756056243313,0.41093,4868.2,4866.3,0.3861]
[1756056243314,0.41107,4866.5,4866.3,0.3861]
[1756056243507,50.361,4866.4,4866.3,0.3861]
[1756056243906,50.361,4866.4,4865.8,0.3905]
[1756056244111,50.361,4866.4,4865.6,0.3861]
[1756056244316,0.0205,4866.2,4865.2,0.3861]
[1756056244612,0.41116,4865.5,4865.4,0.3861]
[1756056244813,21.16416,4865.5,4865.4,0.3861]
[1756056245213,1.02784,4865.8,4864.9,0.3861]
[1756056245408,0.4112,4865.0,4864.9,0.3861]
[1756056245615,21.1602,4865.0,4864.9,0.7766]
[1756056246313,0.4112,4865.0,4864.9,0.7766]
[1756056246515,21.1592,4865.0,4864.9,0.7766]
[1756056247310,20.748,4865.0,4864.9,0.7766]
[1756056247510,20.748,4865.0,4864.6,0.377]
[1756056247709,20.748,4865.0,4864.7,0.377]
[1756056247911,20.748,4865.0,4864.9,0.3749]
[1756056249615,20.748,4865.0,4864.9,0.7519]
[1756056249812,0.41116,4865.4,4864.7,0.41122]
[1756056250018,20.736,4865.3,4865.2,1.49878]
[1756056250212,20.732,4865.3,4865.2,1.49878]
[1756056250412,0.0205,4866.8,4865.5,1.0876]
[1756056250610,20.731,4866.3,4865.6,0.3749]
[1756056250811,0.41111,4866.0,4865.4,0.41116]
[1756056251117,0.41106,4866.6,4866.3,0.377]
[1756056251312,50.74007,4866.4,4866.3,0.7519]
[1756056251612,0.41112,4865.9,4865.8,0.3749]
[1756056251815,50.329,4866.4,4864.3,0.3749]
[1756056251816,1.04837,4865.6,4864.3,0.3749]
[1756056252017,0.41122,4864.8,4864.3,0.3749]
[1756056252217,20.723,4864.7,4864.4,0.3749]
[1756056252418,1.02776,4866.1,4864.2,0.377]
[1756056252419,1.02776,4866.1,4864.3,0.3749]
[1756056252711,0.41118,4865.2,4864.1,0.3357]
[1756056252917,20.721,4865.1,4864.8,0.7127]
[1756056253117,0.41115,4865.5,4864.9,0.7882]
[1756056253417,20.721,4865.4,4864.4,0.3357]
[1756056253611,20.721,4865.4,4864.5,1.0876]
[1756056253817,20.721,4865.4,4864.0,1.02818]
[1756056253818,20.721,4865.4,4864.1,1.0876]
[1756056254013,20.721,4865.4,4864.5,0.41123]
[1756056254014,21.13217,4865.4,4864.5,0.41123]
[1756056254213,0.41117,4865.3,4864.4,0.3749]
[1756056254617,0.41117,4865.3,4864.4,0.41124]
[1756056254922,0.0205,4866.3,4864.7,0.3749]
[1756056255111,2.05462,4868.3,4863.5,2.47590534]
[1756056255112,20.716,4866.2,4864.9,0.7519]
[1756056255413,50.313,4866.4,4865.5,0.7332]
[1756056255716,50.313,4866.4,4865.7,1.0876]
[1756056255915,29.6295,4867.8,4865.8,0.25216878]
[1756056256112,0.41101,4867.2,4866.2,0.41109]
[1756056256314,0.41098,4867.6,4866.4,0.3749]
[1756056256514,0.41098,4867.6,4866.4,0.3357]
[1756056256714,0.41099,4867.5,4866.7,0.3749]
[1756056256909,20.711,4867.7,4866.8,0.78804]
[1756056257110,0.41097,4867.7,4867.1,0.377]
[1756056257316,20.709,4867.6,4867.3,0.377]
[1756056257515,20.709,4867.6,4867.5,0.377]
[1756056257715,20.709,4867.6,4867.5,0.7519]
[1756056258212,20.709,4867.6,4866.8,0.3749]
[1756056258413,20.7295,4867.6,4866.8,0.3749]
[1756056258614,20.709,4867.6,4866.8,0.3749]
[1756056259014,0.41104,4866.9,4866.3,0.3749]
[1756056259317,0.41105,4866.8,4866.3,0.3749]
[1756056259524,20.7,4866.7,4866.5,0.7519]
[1756056259724,20.7,4866.7,4866.6,0.7519]
[1756056259916,0.41101,4867.2,4866.6,0.7519]
[1756056260111,21.10902,4867.1,4866.5,0.7519]
[1756056260423,0.41102,4867.1,4866.5,0.7519]
[1756056260618,20.694,4867.0,4866.4,0.41107]
[1756056260820,20.694,4867.0,4866.6,0.3357]
[1756056261015,20.694,4867.0,4866.8,0.377]
[1756056261323,29.6295,4867.8,4866.8,0.377]
[1756056261324,20.693,4866.9,4866.8,0.7519]
[1756056261515,20.693,4866.9,4866.8,1.0876]
[1756056261918,0.41099,4867.4,4866.8,1.0876]
[1756056262113,0.41103,4867.0,4865.8,0.7106]
[1756056262318,0.41104,4866.9,4866.3,1.16298]
[1756056262515,0.41098,4867.6,4867.0,0.3749]
[1756056262720,21.09499,4867.5,4867.0,0.3357]
[1756056262921,21.09499,4867.5,4867.2,0.377]
[1756056263123,21.09499,4867.5,4867.3,0.3749]
[1756056264423,0.41102,4867.1,4866.9,0.3749]
[1756056264629,0.41102,4867.1,4866.6,0.377]
[1756056264931,0.41105,4866.7,4866.1,0.3357]
[1756056265126,0.41105,4866.7,4866.3,0.377]